bitfinex/quotes_SOLUSD_20251126
["timestamp","ask_amount","ask_price","bid_price","bid_amount"]
[1764187307181,0.28432314,144.0,143.96,0.68]
[1764187307368,7.53969983,143.98,143.96,0.68]
[1764187307876,7.82402297,143.97,143.96,16.308864]
[1764187308260,7.82402297,143.97,143.96,19.388864]
[1764187309486,7.82402297,143.97,143.96,20.068864]
[1764187309651,7.82402297,143.97,143.96,16.988864]
[1764187309856,7.82402297,143.97,143.96,20.068864]
[1764187310581,0.28432314,143.97,143.96,20.068864]
[1764187310781,15.47991447,143.97,143.9,0.68]
[1764187311077,9.09426806,143.96,143.91,0.68]
[1764187311260,0.28432314,143.92,143.91,3.76]
[1764187311456,6.9458915,143.97,143.92,0.68]
[1764187311657,0.28432314,143.96,143.92,8.21969983]
[1764187311875,0.28432314,143.96,143.93,0.68]
[1764187312067,7.82402297,143.96,143.94,3.08]
[1764187312271,0.28432314,143.96,143.94,3.08]
[1764187312471,7.82402297,143.96,143.95,0.68]
[1764187312863,0.28432314,143.96,143.95,0.68]
[1764187313386,0.28432314,143.96,143.95,3.76]
[1764187313582,7.82402297,143.96,143.95,3.76]
[1764187315083,7.82402297,143.96,143.92,16.308864]
[1764187315084,14.77039696,143.96,143.92,16.988864]
[1764187315288,7.82402297,143.93,143.92,3.08]
[1764187315986,7.82402297,143.93,143.92,3.76]
[1764187316988,14.77184482,143.93,143.92,3.76]
[1764187317191,14.77184482,143.93,143.92,0.68]
[1764187317376,14.77184482,143.93,143.92,3.76]
[1764187318474,9.09426806,143.92,143.9,0.68]
[1764187318674,7.53969983,143.91,143.9,0.68]
[1764187318994,14.48848726,143.91,143.9,0.68]
[1764187319391,6.94878743,143.91,143.9,0.68]
[1764187319591,14.48848726,143.91,143.9,0.68]
[1764187320880,7.53969983,143.91,143.9,0.68]
[1764187321075,14.48848726,143.91,143.9,0.68]
[1764187321278,9.09426806,143.9,143.83,7.53969983]
[1764187321616,9.09426806,143.9,143.81,16.68]
[1764187321617,7.53969983,143.86,143.84,3.08]
[1764187321896,7.82402297,143.85,143.84,19.388864]
[1764187322268,0.28432314,143.85,143.84,19.388864]
[1764187322681,0.28432314,143.86,143.85,16.308864]
[1764187322886,0.28432314,143.86,143.85,16.988864]
[1764187323693,0.28432314,143.87,143.85,16.988864]
[1764187323898,16.308864,143.95,143.86,0.68]
[1764187323899,7.53969983,143.9,143.86,0.68]
[1764187324099,6.94878743,143.91,143.87,26.92856383]
[1764187324601,6.94878743,143.91,143.88,0.68]
[1764187324790,0.28432314,143.9,143.88,0.68]
[1764187324989,6.94829722,143.93,143.88,0.68]
[1764187325190,20.86158339,143.95,143.88,0.68]
[1764187325191,6.94740693,143.94,143.92,16.308864]
[1764187325377,6.94740693,143.94,143.93,3.76]
[1764187325582,14.48710676,143.94,143.93,3.76]
[1764187325781,14.7714299,143.94,143.93,3.76]
[1764187326003,14.48710676,143.94,143.93,3.76]
[1764187326584,14.7714299,143.94,143.93,3.76]
[1764187327100,14.7714299,143.94,143.93,20.068864]
[1764187327782,14.7714299,143.94,143.93,3.76]
[1764187328173,8.80994492,143.95,143.93,3.76]
[1764187328174,7.53969983,143.95,143.93,3.76]
[1764187328378,7.53969983,143.96,143.94,0.68]
[1764187328599,0.28432314,143.95,143.94,0.68]
[1764187328982,7.82402297,143.95,143.94,0.68]
[1764187329379,0.28432314,143.95,143.94,0.68]
[1764187329588,7.53969983,143.98,143.95,16.308864]
[1764187329779,33.66938097,144.01,143.96,3.08]
[1764187329780,7.53969983,143.99,143.96,3.08]
[1764187330103,7.53969983,143.99,143.96,3.76]
[1764187330307,0.28432314,143.99,143.97,0.68]
[1764187330511,7.53969983,143.99,143.97,0.68]
[1764187330675,15.75355273,144.02,143.97,0.68]
[1764187330882,0.28432314,143.99,143.97,0.68]
[1764187331181,7.53969983,143.99,143.97,0.68]
[1764187331601,7.53969983,143.98,143.97,0.68]
[1764187331901,7.53969983,143.99,143.97,0.68]
[1764187332104,0.28432314,144.0,143.97,0.68]
[1764187332301,7.53969983,143.99,143.97,0.68]
[1764187332798,14.48479218,143.99,143.97,0.68]
[1764187334182,7.53969983,143.98,143.97,16.988864]
[1764187334800,7.82402297,143.99,143.98,16.308864]
[1764187335005,7.82402297,143.99,143.98,16.968864]
[1764187335498,14.7689497,143.99,143.98,16.968864]
[1764187336201,7.82402297,143.99,143.98,0.66]
[1764187336524,7.82402297,143.99,143.98,16.968864]
[1764187336701,11.93818519,143.99,143.98,16.968864]
[1764187337387,18.88311192,143.99,143.98,16.968864]
[1764187337777,18.88311192,143.99,143.96,0.66]
[1764187338002,11.65386205,143.97,143.94,16.308864]
[1764187338191,11.65386205,143.97,143.89,34.74668007]
[1764187338192,11.65386205,143.95,143.89,17.37385363]
[1764187338388,11.65386205,143.94,143.93,16.308864]
[1764187338587,11.65386205,143.94,143.93,3.08]
[1764187338795,11.65386205,143.94,143.93,3.74]
[1764187339005,11.65386205,143.94,143.93,20.048864]
[1764187339502,11.65386205,143.96,143.94,16.308864]
[1764187339713,11.93818519,143.97,143.94,16.968864]
[1764187339882,18.8841314,143.97,143.95,0.66]
[1764187340182,18.8841314,143.97,143.96,3.08]
[1764187340587,18.8841314,143.97,143.96,3.74]
[1764187341498,27.69407632,143.97,143.96,3.08]
[1764187343693,27.69407632,143.97,143.96,0.66]
[1764187343896,27.69407632,143.97,143.95,3.08]
[1764187344208,11.65386205,143.96,143.95,3.74]
[1764187344905,18.60023604,143.96,143.95,3.74]
[1764187347411,8.80994492,143.95,143.89,20.87]
[1764187347588,11.65386205,143.9,143.89,20.87]
[1764187347787,11.65386205,143.9,143.89,23.95]
[1764187348012,8.80994492,143.95,143.92,16.308864]
[1764187348202,27.41162882,143.93,143.92,16.308864]
[1764187348512,27.41162882,143.93,143.89,23.95]
[1764187348702,27.41162882,143.93,143.92,16.308864]
[1764187349089,27.41162882,143.93,143.92,16.968864]
[1764187349705,27.41162882,143.93,143.92,0.66]
[1764187349889,8.80994492,143.92,143.91,19.388864]
[1764187350213,27.69643472,143.92,143.91,19.388864]
[1764187350428,11.65386205,143.95,143.91,40.258864]
[1764187350594,11.18386205,143.95,143.94,16.308864]
[1764187350791,11.18386205,143.95,143.94,19.388864]
[1764187351394,33.11718847,143.99,143.94,19.388864]
[1764187351593,4.64613402,143.98,143.94,19.388864]
[1764187351824,11.65386205,143.95,143.94,19.388864]
[1764187354387,0.28432314,143.97,143.95,16.308864]
[1764187354590,0.28432314,143.97,143.96,16.308864]
[1764187354591,11.65386205,143.97,143.96,16.308864]
[1764187355414,11.65386205,143.98,143.97,16.308864]
[1764187355623,11.65386205,143.98,143.97,19.388864]
[1764187356831,11.65386205,143.99,143.98,16.308864]
[1764187359904,11.65386205,143.99,143.97,19.388864]
[1764187360098,11.65386205,143.98,143.97,19.388864]
[1764187360707,11.93818519,143.98,143.92,27.81819008]
[1764187360906,11.65386205,143.94,143.93,3.08]
[1764187362100,11.65386205,143.94,143.93,19.388864]
[1764187363203,0.28432314,143.97,143.94,16.308864]
[1764187363412,10.69901739,143.95,143.94,16.308864]
[1764187363826,8.80994492,143.94,143.84,49.90428474]
[1764187364038,11.65386205,143.89,143.86,20.87]
[1764187364526,11.65386205,143.88,143.86,20.87]
[1764187364834,11.65386205,143.88,143.87,3.08]
[1764187365329,11.65386205,143.89,143.87,3.08]
[1764187365506,0.28432314,143.92,143.9,16.308864]
[1764187365705,11.65386205,143.91,143.9,19.388864]
[1764187367423,0.28432314,143.92,143.91,16.308864]
[1764187367632,11.93818519,143.92,143.91,16.308864]
[1764187370328,12.62818519,143.92,143.9,19.388864]
[1764187370530,11.65386205,143.91,143.9,19.388864]
[1764187370901,0.69,143.91,143.9,3.08]
[1764187371116,12.34386205,143.91,143.9,19.388864]
[1764187373418,11.65386205,143.91,143.9,19.388864]
[1764187374428,12.34386205,143.91,143.9,19.388864]
[1764187375124,11.65386205,143.92,143.9,3.08]
[1764187375314,12.34386205,143.92,143.9,3.08]
[1764187375713,11.65386205,143.92,143.9,3.08]
[1764187375915,0.69,143.91,143.9,19.388864]
[1764187376535,12.34386205,143.91,143.9,3.08]
[1764187376711,12.34386205,143.91,143.9,19.388864]
[1764187376916,0.69,143.93,143.9,19.388864]
[1764187377118,11.65386205,143.92,143.9,19.388864]
[1764187377429,12.34386205,143.93,143.9,26.33811997]
[1764187377629,12.34386205,143.95,143.9,26.33811997]
[1764187377842,11.65386205,143.94,143.9,26.33811997]
[1764187378006,12.34386205,143.94,143.9,26.33811997]
[1764187378211,11.65386205,143.95,143.9,26.33811997]
[1764187378617,12.34386205,143.95,143.9,26.33811997]
[1764187378922,0.69,143.94,143.9,26.33811997]
[1764187379128,0.69,143.94,143.9,37.99198202]
[1764187380730,0.69,143.94,143.9,30.73310766]
[1764187380942,0.69,143.94,143.9,26.33811997]
[1764187381146,4.39498769,143.93,143.92,16.308864]
[1764187381326,4.39498769,143.93,143.92,19.388864]
[1764187381510,5.08498769,143.93,143.92,19.388864]
[1764187381711,5.08498769,143.93,143.87,28.7214717]
[1764187382033,4.39498769,143.91,143.88,3.08]
[1764187382240,4.39498769,143.91,143.9,16.308864]
[1764187382535,0.69,143.91,143.9,19.388864]
[1764187386616,0.69,143.91,143.9,3.08]
[1764187386825,0.69,143.91,143.9,19.388864]
[1764187387013,5.08498769,143.91,143.9,19.388864]
[1764187392234,5.08498769,143.91,143.9,16.308864]
[1764187392436,5.08498769,143.91,143.9,19.388864]
[1764187394024,0.69,143.91,143.9,19.388864]
[1764187396427,5.36931083,143.91,143.9,19.388864]
[1764187396635,5.36931083,143.91,143.9,18.668864]
[1764187396843,5.36931083,143.91,143.9,15.588864]
[1764187397057,5.36931083,143.91,143.88,3.08]
[1764187397255,4.39498769,143.89,143.88,3.08]
[1764187397644,5.07498769,143.89,143.88,3.08]
[1764187397951,5.07498769,143.89,143.85,61.5]
[1764187398244,4.39498769,143.87,143.86,3.08]
[1764187398645,3.78028816,143.87,143.81,61.5]
[1764187398854,2.81596502,143.84,143.82,3.08]
[1764187399160,2.81596502,143.84,143.8,80.79562528]
[1764187399161,2.81596502,143.84,143.83,3.08]
[1764187399651,0.28432314,143.83,143.77,17.38831356]
[1764187399860,0.28432314,143.83,143.76,0.1]
[1764187399861,2.81596502,143.79,143.76,0.1]
[1764187400038,2.81596502,143.77,143.76,0.1]
[1764187400230,2.81596502,143.77,143.76,3.18]
[1764187400429,0.68,143.8,143.77,16.308864]
[1764187400640,3.49596502,143.8,143.77,16.308864]
[1764187401156,0.68,143.79,143.77,16.308864]
[1764187402561,0.68,143.79,143.77,23.26430678]
[1764187403265,0.68,143.79,143.77,61.5]
[1764187403451,2.81596502,143.78,143.77,77.808864]
[1764187403651,2.81596502,143.78,143.77,80.888864]
[1764187403850,3.49596502,143.78,143.77,80.888864]
[1764187405245,3.78028816,143.78,143.77,80.888864]
[1764187407337,3.78028816,143.78,143.77,19.388864]
[1764187408454,6.59625318,143.78,143.77,19.388864]
[1764187408638,3.78028816,143.78,143.77,16.308864]
[1764187409056,0.96432314,143.78,143.77,16.308864]
[1764187409250,3.49596502,143.78,143.77,16.308864]
[1764187409447,3.78028816,143.78,143.77,16.308864]
[1764187409646,6.59625318,143.78,143.77,16.308864]
[1764187410654,3.78028816,143.78,143.77,16.308864]
[1764187410842,0.96432314,143.78,143.77,16.308864]
[1764187411044,3.78028816,143.78,143.77,16.308864]
[1764187411595,0.68,143.78,143.77,16.308864]
[1764187411747,3.49596502,143.78,143.77,16.308864]
[1764187412143,3.49596502,143.78,143.77,15.808864]
[1764187413146,0.28432314,143.77,143.76,0.1]
[1764187413362,3.78028816,143.77,143.76,0.1]
[1764187414864,12.59023308,143.77,143.76,0.1]
[1764187415047,12.59023308,143.77,143.75,0.1]
[1764187415048,19.54578708,143.77,143.75,0.1]
[1764187415247,3.49596502,143.76,143.75,0.1]
[1764187415851,8.80994492,143.75,143.69,0.1]
[1764187416052,3.10028816,143.7,143.69,3.18]
[1764187416243,3.10028816,143.7,143.69,0.1]
[1764187416444,3.78028816,143.7,143.69,0.1]
[1764187417144,3.78028816,143.7,143.69,16.408864]
[1764187418156,0.68,143.7,143.69,0.1]
[1764187418362,3.49596502,143.7,143.69,3.18]
[1764187418542,0.68,143.7,143.69,3.18]
[1764187418958,3.78028816,143.7,143.69,3.18]
[1764187420065,3.78028816,143.7,143.69,0.1]
[1764187422248,3.78028816,143.7,143.69,61.6]
[1764187422451,3.78028816,143.7,143.69,0.1]
[1764187422653,9.09426806,143.69,143.6,0.67]
[1764187422963,0.28432314,143.65,143.61,3.08]
[1764187423149,2.81596502,143.62,143.61,3.08]
[1764187423472,0.28432314,143.62,143.61,3.08]
[1764187423761,0.68,143.65,143.61,19.558864]
[1764187423969,2.81596502,143.63,143.61,18.888864]
[1764187424144,2.81596502,143.63,143.61,2.58]
[1764187424345,0.28432314,143.63,143.61,18.888864]
[1764187424558,7.85192013,143.63,143.61,18.888864]
[1764187424768,8.53192013,143.63,143.61,2.58]
[1764187424963,0.96432314,143.63,143.61,2.58]
[1764187425154,0.96432314,143.63,143.61,18.888864]
[1764187425354,8.53192013,143.62,143.61,16.308864]
[1764187425953,8.53192013,143.62,143.6,3.08]
[1764187425954,7.85192013,143.62,143.6,3.08]
[1764187426147,0.28432314,143.62,143.6,3.76]
[1764187426347,0.68,143.64,143.6,10.72362452]
[1764187426591,0.28432314,143.63,143.6,10.72362452]
[1764187427149,7.85192013,143.63,143.59,16.308864]
[1764187427347,0.28432314,143.63,143.61,16.308864]
[1764187427871,7.56759699,143.64,143.61,16.308864]
[1764187428067,8.24759699,143.64,143.61,16.308864]
[1764187428270,0.96432314,143.63,143.61,16.308864]
[1764187428567,7.85192013,143.62,143.61,3.08]
[1764187428867,8.53192013,143.62,143.61,3.08]
[1764187429874,8.53192013,143.62,143.58,23.27357495]
[1764187429875,17.34186505,143.62,143.58,3.08]
[1764187430072,17.34186505,143.62,143.54,3.76]
[1764187430073,7.56759699,143.59,143.54,3.76]
[1764187430369,0.28432314,143.6,143.56,16.308864]
[1764187430572,0.28432314,143.6,143.57,0.68]
[1764187430760,0.28432314,143.6,143.57,7.64508053]
[1764187431362,0.28432314,143.6,143.58,3.08]
[1764187431966,0.28432314,143.6,143.58,3.76]
[1764187432273,0.28432314,143.6,143.58,3.08]
[1764187432473,0.96432314,143.61,143.58,3.08]
[1764187434177,0.96432314,143.61,143.58,10.04475464]
[1764187434551,0.96432314,143.61,143.58,3.08]
[1764187435064,0.96432314,143.61,143.58,64.58]
[1764187436478,0.96432314,143.61,143.58,71.54464252]
[1764187436980,0.96432314,143.63,143.59,0.68]
[1764187437185,0.68,143.62,143.59,0.68]
[1764187437354,0.28432314,143.63,143.59,0.68]
[1764187437563,7.85192013,143.63,143.59,0.68]
[1764187437898,7.85192013,143.63,143.59,16.988864]
[1764187437899,0.28432314,143.63,143.59,16.988864]
[1764187438046,0.28432314,143.63,143.61,16.308864]
[1764187438251,0.28432314,143.63,143.62,3.08]
[1764187438652,0.96432314,143.63,143.62,3.08]
[1764187438865,0.28432314,143.63,143.62,3.08]
[1764187439078,0.96432314,143.63,143.62,3.08]
[1764187439289,8.53192013,143.63,143.62,3.08]
[1764187439586,8.53192013,143.63,143.61,19.388864]
[1764187440578,0.28432314,143.61,143.6,19.388864]
[1764187440750,0.28432314,143.61,143.58,61.5]
[1764187440751,8.80994492,143.6,143.53,6.96703842]
[1764187441081,0.28432314,143.55,143.51,3.76]
[1764187441274,0.28432314,143.55,143.52,3.08]
[1764187441478,0.28432314,143.55,143.53,16.308864]
[1764187441772,0.28432314,143.56,143.54,16.308864]
[1764187442177,8.53192013,143.56,143.54,16.308864]
[1764187442766,0.96432314,143.56,143.54,16.308864]
[1764187442956,0.14216157,143.56,143.55,3.08]
[1764187443151,0.14216157,143.58,143.55,3.08]
[1764187443349,0.14216157,143.57,143.55,19.388864]
[1764187443978,0.14216157,143.57,143.56,3.08]
[1764187444680,0.14216157,143.56,143.55,16.308864]
[1764187445362,0.14216157,143.56,143.55,19.388864]
[1764187446287,0.68,143.57,143.55,19.388864]
[1764187446462,0.28432314,143.56,143.55,19.388864]
[1764187448098,3.11222251,143.56,143.55,16.308864]
[1764187448392,3.77222251,143.56,143.55,3.08]
[1764187449152,3.77222251,143.56,143.52,16.308864]
[1764187449153,3.77222251,143.56,143.52,3.08]
[1764187449357,2.82789937,143.54,143.52,3.08]
[1764187450084,2.82789937,143.57,143.53,7.63695293]
[1764187450401,0.28432314,143.56,143.53,7.63695293]
[1764187450761,0.28432314,143.56,143.54,0.67]
[1764187450962,0.28432314,143.56,143.55,3.08]
[1764187451460,0.14216157,143.56,143.55,3.08]
[1764187451862,2.82789937,143.57,143.55,3.08]
[1764187452063,3.48789937,143.57,143.55,3.08]
[1764187452983,0.66,143.56,143.55,3.08]
[1764187453188,0.66,143.56,143.54,3.08]
[1764187453189,3.48789937,143.56,143.54,3.08]
[1764187453385,2.82789937,143.55,143.48,19.47411307]
[1764187453684,2.82789937,143.53,143.49,3.08]
[1764187453980,0.66,143.54,143.49,22.88676337]
[1764187454180,3.48789937,143.54,143.5,7.63863363]
[1764187455167,2.82789937,143.54,143.5,6.96863363]
[1764187455374,2.82789937,143.54,143.49,83.71676337]
[1764187455375,0.14216157,143.55,143.45,0.68]
[1764187455376,2.82789937,143.51,143.45,0.68]
[1764187455584,2.82789937,143.5,143.44,2.82789937]
[1764187455883,0.97432314,143.53,143.48,2.82789937]
[1764187456088,0.97432314,143.53,143.49,3.08]
[1764187456287,0.69,143.52,143.49,10.04911158]
[1764187456787,3.11222251,143.53,143.49,10.04911158]
[1764187456974,3.80222251,143.53,143.49,10.04911158]
[1764187457170,0.28432314,143.53,143.5,0.68]
[1764187457377,0.97432314,143.53,143.49,12.87701095]
[1764187457577,0.97432314,143.53,143.49,13.55701095]
[1764187457776,0.69,143.53,143.49,13.55701095]
[1764187458690,0.69,143.53,143.5,3.1]
[1764187458691,5.11047474,143.53,143.5,3.1]
[1764187459098,0.69,143.52,143.5,3.1]
[1764187459591,2.82789937,143.56,143.5,7.52047474]
[1764187459799,0.69,143.56,143.52,4.42047474]
[1764187459986,0.69,143.55,143.53,3.1]
[1764187460771,4.56263631,143.57,143.53,3.1]
[1764187461089,0.83216157,143.57,143.53,15.16764872]
[1764187461290,4.42047474,143.58,143.53,10.74717398]
[1764187461486,0.97432314,143.57,143.53,15.16764872]
[1764187462492,0.28432314,143.57,143.54,0.68]
[1764187462692,0.69,143.61,143.56,20.72933874]
[1764187462897,0.28432314,143.6,143.57,19.408864]
[1764187463078,4.70479788,143.6,143.57,19.408864]
[1764187463278,0.69,143.59,143.57,19.408864]
[1764187463671,0.69,143.59,143.54,65.92047474]
[1764187463672,4.42047474,143.58,143.55,3.1]
[1764187463872,5.39479788,143.59,143.55,3.1]
[1764187464087,0.69,143.59,143.55,8.20047474]
[1764187464304,0.69,143.59,143.56,4.42047474]
[1764187464601,0.69,143.59,143.55,10.74593562]
[1764187464978,0.69,143.59,143.55,28.16147027]
[1764187465593,5.11047474,143.59,143.55,28.16147027]
[1764187466305,0.69,143.59,143.55,89.66147027]
[1764187466979,4.42047474,143.6,143.56,0.68]
[1764187467379,5.11047474,143.6,143.56,0.68]
[1764187467579,5.11047474,143.6,143.56,62.18]
[1764187468302,5.11047474,143.59,143.55,68.46593562]
[1764187468503,5.11047474,143.59,143.57,3.08]
[1764187468705,5.11047474,143.58,143.57,3.08]
[1764187469083,0.69,143.58,143.57,3.08]
[1764187469396,4.42047474,143.59,143.57,3.08]
[1764187469788,0.69,143.58,143.57,3.08]
[1764187470184,0.28432314,143.62,143.57,3.08]
[1764187470415,0.69,143.61,143.57,10.72513052]
[1764187470587,5.11047474,143.61,143.57,10.04513052]
[1764187470985,4.42047474,143.59,143.55,0.68]
[1764187471208,0.69,143.6,143.57,3.08]
[1764187471384,5.11047474,143.59,143.57,3.08]
[1764187472505,5.11047474,143.58,143.54,23.27544724]
[1764187472705,4.42047474,143.57,143.56,16.308864]
[1764187472906,5.11047474,143.57,143.56,16.308864]
[1764187473407,5.11047474,143.57,143.55,3.1]
[1764187473590,5.11047474,143.56,143.55,3.1]
[1764187473790,0.69,143.56,143.55,3.1]
[1764187474013,5.11047474,143.56,143.55,3.1]
[1764187475007,4.42047474,143.56,143.55,3.1]
[1764187475215,4.42047474,143.57,143.55,3.1]
[1764187475686,5.11047474,143.57,143.55,3.1]
[1764187476087,5.11047474,143.56,143.55,3.1]
[1764187480817,5.39479788,143.56,143.55,3.1]
[1764187481120,5.39479788,143.56,143.52,3.08]
[1764187481419,5.11047474,143.55,143.52,3.08]
[1764187481616,5.11047474,143.55,143.52,3.76]
[1764187482816,5.11047474,143.54,143.52,3.08]
[1764187483195,4.42047474,143.54,143.5,7.64843718]
[1764187483413,4.42047474,143.54,143.51,3.76]
[1764187484194,4.42047474,143.54,143.51,10.72802185]
[1764187484595,5.12047474,143.54,143.51,10.72802185]
[1764187485824,5.12047474,143.54,143.51,72.22802185]
[1764187487213,4.42047474,143.54,143.51,71.54802185]
[1764187487416,4.42047474,143.55,143.52,0.68]
[1764187487728,4.42047474,143.55,143.51,72.22802185]
[1764187487902,5.12047474,143.55,143.51,72.22802185]
[1764187488419,5.12047474,143.54,143.51,64.58]
[1764187488806,0.7,143.58,143.52,16.988864]
[1764187489126,4.42047474,143.57,143.53,0.68]
[1764187489306,4.42047474,143.57,143.54,3.08]
[1764187489623,5.12047474,143.57,143.54,3.08]
[1764187490421,5.12047474,143.56,143.54,3.08]
[1764187490621,4.42047474,143.56,143.52,23.27632873]
[1764187490829,4.42047474,143.53,143.48,0.68]
[1764187491032,4.42047474,143.52,143.49,3.76]
[1764187491325,4.42047474,143.52,143.51,16.308864]
[1764187492122,4.42047474,143.53,143.51,16.308864]
[1764187492326,4.42047474,143.52,143.49,10.72892576]
[1764187492522,5.12047474,143.52,143.49,27.03778976]
[1764187492706,4.42047474,143.52,143.49,27.03778976]
[1764187493317,5.12047474,143.52,143.49,26.35778976]
[1764187493512,5.12047474,143.52,143.49,27.03778976]
[1764187493703,4.42047474,143.52,143.49,27.03778976]
[1764187493905,5.12047474,143.52,143.49,27.03778976]
[1764187494301,4.42047474,143.52,143.49,27.03778976]
[1764187495203,5.12047474,143.53,143.49,27.03778976]
[1764187495733,4.42047474,143.51,143.48,3.08]
[1764187496101,4.42047474,143.53,143.49,0.68]
[1764187496323,5.12047474,143.53,143.49,0.68]
[1764187496503,0.7,143.52,143.49,0.68]
[1764187496714,5.12047474,143.52,143.49,0.68]
[1764187496906,5.12047474,143.52,143.49,7.64900562]
[1764187497710,4.42047474,143.53,143.5,0.68]
[1764187497915,4.42047474,143.53,143.49,7.64900562]
[1764187498222,5.12047474,143.53,143.5,0.68]
[1764187498422,5.12047474,143.53,143.49,7.64900562]
[1764187500011,4.42047474,143.52,143.49,7.64900562]
[1764187500222,5.12047474,143.53,143.5,0.68]
[1764187500533,0.28432314,143.52,143.48,3.08]
[1764187500828,4.42047474,143.49,143.45,61.5]
[1764187501012,11.88415472,143.52,143.46,3.08]
[1764187501334,4.42047474,143.49,143.46,3.76]
[1764187501655,4.42047474,143.48,143.46,3.08]
[1764187502007,5.12047474,143.48,143.45,77.808864]
[1764187502332,4.42047474,143.46,143.44,3.08]
[1764187502534,4.70479788,143.45,143.4,0.1]
[1764187502709,4.42047474,143.41,143.4,0.1]
[1764187502911,4.42047474,143.45,143.4,5.20047474]
[1764187503111,4.42047474,143.48,143.43,16.308864]
[1764187503313,0.28432314,143.48,143.44,3.08]
[1764187503521,0.28432314,143.48,143.44,3.76]
[1764187503522,5.40479788,143.48,143.44,3.76]
[1764187503726,5.40479788,143.48,143.44,20.068864]
[1764187503929,5.40479788,143.48,143.44,3.76]
[1764187504113,8.80994492,143.5,143.45,7.65064224]
[1764187504114,4.42047474,143.49,143.45,7.65064224]
[1764187504426,4.42047474,143.48,143.44,0.68]
[1764187504608,5.12047474,143.48,143.44,0.68]
[1764187505004,4.70479788,143.46,143.42,16.308864]
[1764187505236,4.42047474,143.43,143.4,3.18]
[1764187505632,4.42047474,143.43,143.4,3.86]
[1764187505838,4.42047474,143.43,143.4,20.168864]
[1764187506017,4.42047474,143.43,143.4,27.14228235]
[1764187506215,4.42047474,143.42,143.4,3.18]
[1764187506726,5.08047474,143.42,143.4,3.18]
[1764187507117,4.42047474,143.42,143.4,19.488864]
[1764187507331,0.66,143.44,143.4,27.13230969]
[1764187507539,5.08047474,143.44,143.4,27.13213938]
[1764187508043,0.66,143.43,143.4,3.18]
[1764187508221,5.08047474,143.43,143.4,10.15347579]
[1764187508421,4.42047474,143.44,143.4,10.82347579]
[1764187508643,0.66,143.45,143.4,10.82347579]
[1764187508851,5.08047474,143.44,143.4,10.82347579]
[1764187509169,5.08047474,143.44,143.4,10.15347579]
[1764187509352,0.66,143.43,143.4,10.15347579]
[1764187509545,5.08047474,143.43,143.4,3.18]
[1764187509720,5.08047474,143.43,143.4,3.85]
[1764187509921,0.66,143.43,143.4,3.85]
[1764187510551,4.42047474,143.44,143.4,10.82345576]
[1764187510747,0.28432314,143.45,143.4,10.15345576]
[1764187510922,0.28432314,143.45,143.41,0.67]
[1764187510923,4.70479788,143.45,143.41,0.67]
[1764187511122,0.28432314,143.45,143.41,0.67]
[1764187511629,0.66,143.47,143.41,16.978864]
[1764187511630,5.08047474,143.47,143.41,16.978864]
[1764187511824,5.08047474,143.47,143.42,0.67]
[1764187512027,0.66,143.49,143.43,7.50047474]
[1764187512335,4.42047474,143.48,143.43,20.058864]
[1764187512724,5.08047474,143.47,143.43,26.36086977]
[1764187512928,5.08047474,143.47,143.43,20.058864]
[1764187513132,5.08047474,143.46,143.43,19.388864]
[1764187513549,5.08047474,143.46,143.43,26.36087813]
[1764187513930,0.66,143.46,143.43,26.36087813]
[1764187514831,0.66,143.46,143.43,20.048864]
[1764187515024,4.42047474,143.47,143.43,27.02067509]
[1764187515543,5.08047474,143.47,143.43,27.02067509]
[1764187515938,4.42047474,143.47,143.44,0.66]
[1764187516134,0.94432314,143.49,143.44,0.66]
[1764187516135,0.66,143.49,143.44,0.66]
[1764187516330,5.08047474,143.49,143.44,0.66]
[1764187516537,5.08047474,143.48,143.44,0.66]
[1764187516731,4.42047474,143.48,143.45,6.97107005]
[1764187517150,5.08047474,143.48,143.45,68.47107005]